[Event "Titled Tuesday Blitz August 22 Late 2023"]
[White "Aevengho"]
[Black "Polaczek, Richard"]
[BlackFideId "200026"]
[WhiteElo "2588"]
[BlackElo "2385"]
[Result "0-1"]
[Round "2"]
[TimeControl "180+1"]
[Date "2023.08.22"]
[WhiteClock "0:00:04"]
[BlackClock "0:00:37"]
[Board "142"]

1. e4 {[%clk 0:03:00]}  Nf6 {[%clk 0:02:59]} 2. e5 {[%clk 0:03:01]}  Nd5 {[%clk 0:02:59]} 3. d4 {[%clk 0:03:01]}  d6 {[%clk 0:02:59]} 4. Bc4 {[%clk 0:03:02]}  Nb6 {[%clk 0:02:59]} 5. Bb3 {[%clk 0:03:01]}  Bf5 {[%clk 0:02:56]} 6. Qf3 {[%clk 0:03:01]}  Qc8 {[%clk 0:02:54]} 7. Ne2 {[%clk 0:02:51]}  e6 {[%clk 0:02:53]} 8. Ng3 {[%clk 0:02:51]}  Bg6 {[%clk 0:02:51]} 9. h4 {[%clk 0:02:51]}  h6 {[%clk 0:02:50]} 10. a4 {[%clk 0:02:51]}  a5 {[%clk 0:02:49]} 11. h5 {[%clk 0:02:51]}  Bh7 {[%clk 0:02:48]} 12. Nc3 {[%clk 0:02:51]}  Nc6 {[%clk 0:02:47]} 13. Qf4 {[%clk 0:02:48]}  Nb4 {[%clk 0:02:38]} 14. Nce4 {[%clk 0:02:42]}  N6d5 {[%clk 0:02:32]} 15. Qf3 {[%clk 0:02:38]}  Be7 {[%clk 0:02:22]} 16. c3 {[%clk 0:02:33]}  Nc6 {[%clk 0:02:21]} 17. exd6 {[%clk 0:02:32]}  cxd6 {[%clk 0:02:16]} 18. O-O {[%clk 0:02:28]}  O-O {[%clk 0:02:11]} 19. Re1 {[%clk 0:02:29]}  Nf6 {[%clk 0:01:57]} 20. Nxf6+ {[%clk 0:02:26]}  Bxf6 {[%clk 0:01:57]} 21. Bxh6 {[%clk 0:02:26]}  Qd8 {[%clk 0:01:49]} 22. Bf4 {[%clk 0:02:23]}  e5 {[%clk 0:01:46]} 23. dxe5 {[%clk 0:02:21]}  dxe5 {[%clk 0:01:46]} 24. Rad1 {[%clk 0:02:17]}  Qb6 {[%clk 0:01:45]} 25. Be3 {[%clk 0:01:52]}  Qxb3 {[%clk 0:01:44]} 26. h6 {[%clk 0:01:52]}  Qe6 {[%clk 0:01:33]} 27. hxg7 {[%clk 0:01:41]}  Bxg7 {[%clk 0:01:32]} 28. Nh5 {[%clk 0:01:41]}  f5 {[%clk 0:01:29]} 29. Nxg7 {[%clk 0:01:33]}  Kxg7 {[%clk 0:01:28]} 30. Bb6 {[%clk 0:00:59]}  f4 {[%clk 0:01:22]} 31. Bc7 {[%clk 0:00:52]}  Rae8 {[%clk 0:01:18]} 32. Rd6 {[%clk 0:00:47]}  Qf5 {[%clk 0:01:17]} 33. Qd5 {[%clk 0:00:25]}  Rf7 {[%clk 0:01:12]} 34. f3 {[%clk 0:00:21]}  Qg5 {[%clk 0:01:00]} 35. Rd7 {[%clk 0:00:17]}  Ree7 {[%clk 0:01:00]} 36. Rxe7 {[%clk 0:00:16]}  Rxe7 {[%clk 0:00:59]} 37. b4 {[%clk 0:00:14]}  axb4 {[%clk 0:00:58]} 38. cxb4 {[%clk 0:00:15]}  Bg6 {[%clk 0:00:56]} 39. b5 {[%clk 0:00:15]}  Bf7 {[%clk 0:00:55]} 40. Qc5 {[%clk 0:00:14]}  Nd4 {[%clk 0:00:50]} 41. Bxe5+ {[%clk 0:00:11]}  Rxe5 {[%clk 0:00:49]} 42. Qxe5+ {[%clk 0:00:12]}  Qxe5 {[%clk 0:00:48]} 43. Rxe5 {[%clk 0:00:13]}  Kf6 {[%clk 0:00:47]} 44. Rc5 {[%clk 0:00:11]}  Nb3 {[%clk 0:00:41]} 45. Rc7 {[%clk 0:00:10]}  Bd5 {[%clk 0:00:41]} 46. Kf2 {[%clk 0:00:08]}  Ke6 {[%clk 0:00:40]} 47. g3 {[%clk 0:00:08]}  Kd6 {[%clk 0:00:40]} 48. Rg7 {[%clk 0:00:06]}  fxg3+ {[%clk 0:00:40]} 49. Kxg3 {[%clk 0:00:07]}  Nd4 {[%clk 0:00:38]} 50. f4 {[%clk 0:00:04]}  Nf5+ {[%clk 0:00:37]} 0-1


[Site "https://www.chess.com"]

[Event "Titled Tuesday Blitz August 22 Late 2023"]
[White "Auger_Pi"]
[Black "Merino Garcia, Rafael II"]
[BlackFideId "2209128"]
[WhiteElo "2554"]
[BlackElo "2372"]
[Result "1-0"]
[Round "2"]
[TimeControl "180+1"]
[Date "2023.08.22"]
[WhiteClock "0:02:04"]
[BlackClock "0:00:55"]
[Board "147"]

1. e4 {[%clk 0:03:00]}  d6 {[%clk 0:03:00]} 2. d4 {[%clk 0:03:00]}  Nd7 {[%clk 0:03:00]} 3. g3 {[%clk 0:02:58]}  g6 {[%clk 0:03:01]} 4. Bg2 {[%clk 0:02:58]}  Bg7 {[%clk 0:03:02]} 5. Ne2 {[%clk 0:02:58]}  e6 {[%clk 0:03:00]} 6. O-O {[%clk 0:02:59]}  Ne7 {[%clk 0:03:01]} 7. c4 {[%clk 0:02:59]}  O-O {[%clk 0:03:01]} 8. Nbc3 {[%clk 0:02:59]}  h6 {[%clk 0:02:26]} 9. f4 {[%clk 0:02:58]}  f5 {[%clk 0:02:18]} 10. e5 {[%clk 0:02:58]}  dxe5 {[%clk 0:02:17]} 11. dxe5 {[%clk 0:02:57]}  Nc6 {[%clk 0:02:06]} 12. Be3 {[%clk 0:02:57]}  Qe7 {[%clk 0:02:05]} 13. a3 {[%clk 0:02:56]}  a5 {[%clk 0:02:03]} 14. Nb5 {[%clk 0:02:55]}  Nc5 {[%clk 0:01:52]} 15. Nxc7 {[%clk 0:02:45]}  Qxc7 {[%clk 0:01:49]} 16. Bxc5 {[%clk 0:02:45]}  Rd8 {[%clk 0:01:40]} 17. Bd6 {[%clk 0:02:29]}  Qb6+ {[%clk 0:01:40]} 18. Kh1 {[%clk 0:02:28]}  a4 {[%clk 0:01:13]} 19. Qc2 {[%clk 0:02:23]}  Na5 {[%clk 0:01:12]} 20. c5 {[%clk 0:02:21]}  Qa6 {[%clk 0:01:12]} 21. Nd4 {[%clk 0:02:19]}  Bd7 {[%clk 0:01:12]} 22. Rfd1 {[%clk 0:02:15]}  Nc4 {[%clk 0:01:11]} 23. Bf1 {[%clk 0:02:12]}  Ne3 {[%clk 0:01:11]} 24. Bxa6 {[%clk 0:02:10]}  Nxc2 {[%clk 0:01:12]} 25. Bxb7 {[%clk 0:02:11]}  Nxa1 {[%clk 0:01:12]} 26. Bxa8 {[%clk 0:02:11]}  Rxa8 {[%clk 0:01:10]} 27. Rxa1 {[%clk 0:02:10]}  Rc8 {[%clk 0:01:07]} 28. Rc1 {[%clk 0:02:09]}  Bf8 {[%clk 0:01:06]} 29. c6 {[%clk 0:02:09]}  Be8 {[%clk 0:01:06]} 30. Kg1 {[%clk 0:02:05]}  g5 {[%clk 0:00:55]} 31. c7 {[%clk 0:02:04]} 1-0


[Site "https://www.chess.com"]

[Event "Titled Tuesday Blitz August 22 Late 2023"]
[White "Graif, William"]
[Black "Baghdasaryan, Vahe"]
[WhiteFideId "2609835"]
[BlackFideId "13303139"]
[WhiteElo "2528"]
[BlackElo "2365"]
[Result "0-1"]
[Round "2"]
[TimeControl "180+1"]
[Date "2023.08.22"]
[WhiteClock "0:00:00"]
[BlackClock "0:00:29"]
[Board "151"]

1. e4 {[%clk 0:03:00]}  e5 {[%clk 0:02:59]} 2. Nf3 {[%clk 0:02:59]}  Nc6 {[%clk 0:02:59]} 3. d4 {[%clk 0:03:00]}  exd4 {[%clk 0:02:59]} 4. c3 {[%clk 0:03:01]}  dxc3 {[%clk 0:02:58]} 5. Bc4 {[%clk 0:03:00]}  Nf6 {[%clk 0:02:56]} 6. O-O {[%clk 0:02:51]}  d6 {[%clk 0:02:54]} 7. Qb3 {[%clk 0:02:44]}  Na5 {[%clk 0:02:41]} 8. Bxf7+ {[%clk 0:02:32]}  Ke7 {[%clk 0:02:41]} 9. Qxc3 {[%clk 0:02:28]}  Kxf7 {[%clk 0:02:36]} 10. Qxa5 {[%clk 0:02:24]}  Nxe4 {[%clk 0:02:26]} 11. Qd5+ {[%clk 0:02:20]}  Be6 {[%clk 0:02:20]} 12. Qxe4 {[%clk 0:02:17]}  h6 {[%clk 0:02:20]} 13. Nc3 {[%clk 0:02:13]}  Be7 {[%clk 0:02:18]} 14. Re1 {[%clk 0:02:07]}  Qc8 {[%clk 0:02:15]} 15. Nd4 {[%clk 0:02:04]}  Bf6 {[%clk 0:02:08]} 16. Nxe6 {[%clk 0:01:35]}  Re8 {[%clk 0:02:08]} 17. Bf4 {[%clk 0:01:24]}  Rxe6 {[%clk 0:02:05]} 18. Qd5 {[%clk 0:01:14]}  c6 {[%clk 0:01:51]} 19. Qxe6+ {[%clk 0:01:06]}  Qxe6 {[%clk 0:01:51]} 20. Rxe6 {[%clk 0:01:07]}  Kxe6 {[%clk 0:01:52]} 21. Re1+ {[%clk 0:00:57]}  Kd7 {[%clk 0:01:51]} 22. Ne4 {[%clk 0:00:57]}  Be7 {[%clk 0:01:51]} 23. Nxd6 {[%clk 0:00:54]}  Rf8 {[%clk 0:01:44]} 24. Rxe7+ {[%clk 0:00:19]}  Kxe7 {[%clk 0:01:42]} 25. g3 {[%clk 0:00:20]}  Rxf4 {[%clk 0:01:38]} 26. Nc8+ {[%clk 0:00:15]}  Kd8 {[%clk 0:01:33]} 27. gxf4 {[%clk 0:00:16]}  Kxc8 {[%clk 0:01:33]} 28. Kg2 {[%clk 0:00:14]}  Kd7 {[%clk 0:01:34]} 29. Kf3 {[%clk 0:00:15]}  Ke6 {[%clk 0:01:34]} 30. Ke4 {[%clk 0:00:13]}  g6 {[%clk 0:01:34]} 31. h4 {[%clk 0:00:09]}  h5 {[%clk 0:01:31]} 32. b4 {[%clk 0:00:09]}  b6 {[%clk 0:01:26]} 33. a3 {[%clk 0:00:10]}  c5 {[%clk 0:01:26]} 34. bxc5 {[%clk 0:00:09]}  bxc5 {[%clk 0:01:27]} 35. a4 {[%clk 0:00:09]}  a5 {[%clk 0:01:22]} 36. f3 {[%clk 0:00:10]}  Kd6 {[%clk 0:01:20]} 37. f5 {[%clk 0:00:08]}  gxf5+ {[%clk 0:01:20]} 38. Kxf5 {[%clk 0:00:08]}  Kd5 {[%clk 0:01:20]} 39. f4 {[%clk 0:00:06]}  c4 {[%clk 0:01:20]} 40. Kg6 {[%clk 0:00:06]}  c3 {[%clk 0:01:20]} 41. f5 {[%clk 0:00:07]}  c2 {[%clk 0:01:20]} 42. f6 {[%clk 0:00:07]}  c1=Q {[%clk 0:01:20]} 43. f7 {[%clk 0:00:08]}  Qf4 {[%clk 0:00:59]} 44. Kg7 {[%clk 0:00:08]}  Ke6 {[%clk 0:00:29]} 45. f8=Q {[%clk 0:00:06]}  Qxf8+ {[%clk 0:00:29]} 46. Kxf8 {[%clk 0:00:07]}  Kf5 {[%clk 0:00:29]} 47. Ke7 {[%clk 0:00:00]}  Kg4 {[%clk 0:00:29]} 0-1


[Site "https://www.chess.com"]

[Event "Titled Tuesday Blitz August 22 Late 2023"]
[White "Tinmaz, Kerem"]
[Black "Estrada Nieto, Julian"]
[WhiteFideId "44559151"]
[BlackFideId "5101018"]
[WhiteElo "2364"]
[BlackElo "2526"]
[Result "0-1"]
[Round "2"]
[TimeControl "180+1"]
[Date "2023.08.22"]
[WhiteClock "0:01:29"]
[BlackClock "0:02:42"]
[Board "152"]

1. e4 {[%clk 0:03:00]}  e5 {[%clk 0:02:59]} 2. Nf3 {[%clk 0:02:59]}  Nc6 {[%clk 0:02:59]} 3. Bb5 {[%clk 0:02:59]}  a6 {[%clk 0:02:59]} 4. Bxc6 {[%clk 0:02:59]}  dxc6 {[%clk 0:02:58]} 5. O-O {[%clk 0:03:00]}  Bg4 {[%clk 0:02:58]} 6. h3 {[%clk 0:03:00]}  Bh5 {[%clk 0:02:58]} 7. g4 {[%clk 0:02:59]}  Bg6 {[%clk 0:02:57]} 8. Nxe5 {[%clk 0:02:59]}  Qh4 {[%clk 0:02:55]} 9. Qf3 {[%clk 0:02:58]}  f6 {[%clk 0:02:55]} 10. Nxg6 {[%clk 0:02:57]}  hxg6 {[%clk 0:02:55]} 11. Kg2 {[%clk 0:02:58]}  Ne7 {[%clk 0:02:51]} 12. d3 {[%clk 0:02:57]}  g5 {[%clk 0:02:51]} 13. Be3 {[%clk 0:02:57]}  Ng6 {[%clk 0:02:48]} 14. Nd2 {[%clk 0:02:57]}  Qh7 {[%clk 0:02:47]} 15. Qe2 {[%clk 0:01:31]}  Qxh3+ {[%clk 0:02:44]} 16. Kg1 {[%clk 0:01:29]}  Qh1# {[%clk 0:02:42]} 0-1


[Site "https://www.chess.com"]

[Event "Titled Tuesday Blitz August 22 Late 2023"]
[White "Fernandez, Nelson Wilfredo"]
[Black "Labussiere, Yago"]
[WhiteFideId "8401594"]
[BlackFideId "2186969"]
[WhiteElo "2525"]
[BlackElo "2363"]
[Result "1-0"]
[Round "2"]
[TimeControl "180+1"]
[Date "2023.08.22"]
[WhiteClock "0:00:15"]
[BlackClock "0:00:00"]
[Board "153"]

1. d4 {[%clk 0:03:00]}  Nf6 {[%clk 0:02:59]} 2. c4 {[%clk 0:03:00]}  g6 {[%clk 0:03:00]} 3. Nc3 {[%clk 0:03:00]}  d6 {[%clk 0:03:00]} 4. e4 {[%clk 0:03:00]}  Bg7 {[%clk 0:02:59]} 5. Nf3 {[%clk 0:03:00]}  O-O {[%clk 0:02:58]} 6. Be2 {[%clk 0:02:59]}  e5 {[%clk 0:02:57]} 7. d5 {[%clk 0:02:59]}  a5 {[%clk 0:02:56]} 8. Bg5 {[%clk 0:02:59]}  h6 {[%clk 0:02:56]} 9. Bh4 {[%clk 0:02:59]}  Na6 {[%clk 0:02:57]} 10. Nd2 {[%clk 0:02:59]}  Nc5 {[%clk 0:02:54]} 11. O-O {[%clk 0:02:54]}  Bd7 {[%clk 0:02:54]} 12. Rc1 {[%clk 0:02:49]}  Qe8 {[%clk 0:02:55]} 13. b3 {[%clk 0:02:49]}  Nh7 {[%clk 0:02:52]} 14. a3 {[%clk 0:02:48]}  f5 {[%clk 0:02:51]} 15. f3 {[%clk 0:02:49]}  h5 {[%clk 0:02:49]} 16. Bf2 {[%clk 0:02:49]}  Bh6 {[%clk 0:02:47]} 17. b4 {[%clk 0:02:49]}  axb4 {[%clk 0:02:46]} 18. axb4 {[%clk 0:02:44]}  Na4 {[%clk 0:02:46]} 19. c5 {[%clk 0:02:42]}  Nxc3 {[%clk 0:02:01]} 20. Rxc3 {[%clk 0:02:41]}  Ra2 {[%clk 0:02:01]} 21. Nc4 {[%clk 0:02:37]}  fxe4 {[%clk 0:01:55]} 22. fxe4 {[%clk 0:02:38]}  Qe7 {[%clk 0:01:46]} 23. cxd6 {[%clk 0:02:34]}  cxd6 {[%clk 0:01:45]} 24. Nb6 {[%clk 0:02:27]}  Qd8 {[%clk 0:01:14]} 25. Nxd7 {[%clk 0:02:13]}  Qxd7 {[%clk 0:01:14]} 26. b5 {[%clk 0:01:50]}  Nf6 {[%clk 0:01:12]} 27. Qd3 {[%clk 0:01:42]}  Ng4 {[%clk 0:00:58]} 28. Bb6 {[%clk 0:01:23]}  Rxf1+ {[%clk 0:00:48]} 29. Bxf1 {[%clk 0:01:24]}  Qf7 {[%clk 0:00:20]} 30. h3 {[%clk 0:00:58]}  Nf6 {[%clk 0:00:09]} 31. Rc8+ {[%clk 0:00:57]}  Bf8 {[%clk 0:00:08]} 32. Qf3 {[%clk 0:00:53]}  Nd7 {[%clk 0:00:07]} 33. Qxf7+ {[%clk 0:00:51]}  Kxf7 {[%clk 0:00:08]} 34. Rc7 {[%clk 0:00:51]}  Ke8 {[%clk 0:00:07]} 35. Be3 {[%clk 0:00:45]}  b6 {[%clk 0:00:05]} 36. Rc8+ {[%clk 0:00:35]}  Kf7 {[%clk 0:00:03]} 37. Rc7 {[%clk 0:00:35]}  Ke8 {[%clk 0:00:03]} 38. Bg5 {[%clk 0:00:33]}  Be7 {[%clk 0:00:03]} 39. Be3 {[%clk 0:00:29]}  Ra4 {[%clk 0:00:02]} 40. Rc8+ {[%clk 0:00:23]}  Kf7 {[%clk 0:00:02]} 41. Rc7 {[%clk 0:00:22]}  Ke8 {[%clk 0:00:02]} 42. Kf2 {[%clk 0:00:18]}  Rxe4 {[%clk 0:00:02]} 43. Be2 {[%clk 0:00:19]}  Ra4 {[%clk 0:00:02]} 44. g4 {[%clk 0:00:18]}  hxg4 {[%clk 0:00:02]} 45. Bxg4 {[%clk 0:00:18]}  Ra2+ {[%clk 0:00:03]} 46. Kf3 {[%clk 0:00:18]}  Nc5 {[%clk 0:00:02]} 47. Be6 {[%clk 0:00:17]}  Rb2 {[%clk 0:00:02]} 48. Rc8+ {[%clk 0:00:16]}  Bd8 {[%clk 0:00:02]} 49. Bg5 {[%clk 0:00:17]}  Nxe6 {[%clk 0:00:02]} 50. dxe6 {[%clk 0:00:17]}  e4+ {[%clk 0:00:01]} 51. Kxe4 {[%clk 0:00:16]}  Rb4+ {[%clk 0:00:02]} 52. Kd3 {[%clk 0:00:15]}  Rb3+ {[%clk 0:00:02]} 53. Kc2 {[%clk 0:00:15]}  Rc3+ {[%clk 0:00:00]} 54. Kxc3 {[%clk 0:00:15]} 1-0


[Site "https://www.chess.com"]

[Event "Titled Tuesday Blitz August 22 Late 2023"]
[White "Seresin, Francesco"]
[Black "Sreyas Payyappat"]
[WhiteFideId "886335"]
[BlackFideId "46674969"]
[WhiteElo "2360"]
[BlackElo "2525"]
[Result "1-0"]
[Round "2"]
[TimeControl "180+1"]
[Date "2023.08.22"]
[WhiteClock "0:01:51"]
[BlackClock "0:02:08"]
[Board "154"]

1. d4 {[%clk 0:02:58]}  Nf6 {[%clk 0:02:59]} 2. c4 {[%clk 0:02:58]}  c6 {[%clk 0:02:58]} 3. Nc3 {[%clk 0:02:58]}  d5 {[%clk 0:02:58]} 4. cxd5 {[%clk 0:02:58]}  cxd5 {[%clk 0:02:56]} 5. Bf4 {[%clk 0:02:58]}  Bf5 {[%clk 0:02:54]} 6. e3 {[%clk 0:02:53]}  e6 {[%clk 0:02:53]} 7. Qb3 {[%clk 0:02:52]}  Qd7 {[%clk 0:02:48]} 8. Nf3 {[%clk 0:02:50]}  Bd6 {[%clk 0:02:43]} 9. Bxd6 {[%clk 0:02:34]}  Qxd6 {[%clk 0:02:42]} 10. Qxb7 {[%clk 0:02:35]}  O-O {[%clk 0:02:41]} 11. Qxa8 {[%clk 0:02:02]}  Qb6 {[%clk 0:02:39]} 12. Bb5 {[%clk 0:01:57]}  a6 {[%clk 0:02:19]} 13. Ba4 {[%clk 0:01:56]}  Qxb2 {[%clk 0:02:08]} 14. O-O {[%clk 0:01:53]}  Qc2 {[%clk 0:02:08]} 15. Bxc2 {[%clk 0:01:51]} 1-0


[Site "https://www.chess.com"]

[Event "Titled Tuesday Blitz August 22 Late 2023"]
[White "Battlecruiser_Operational"]
[Black "Real_taiatai"]
[WhiteElo "2352"]
[BlackElo "2520"]
[Result "1/2-1/2"]
[Round "2"]
[TimeControl "180+1"]
[Date "2023.08.22"]
[WhiteClock "0:00:04"]
[BlackClock "0:00:20"]
[Board "157"]

1. d4 {[%clk 0:02:27]}  Nf6 {[%clk 0:02:58]} 2. c4 {[%clk 0:02:26]}  g6 {[%clk 0:02:59]} 3. Nc3 {[%clk 0:02:25]}  Bg7 {[%clk 0:03:00]} 4. e4 {[%clk 0:02:24]}  d6 {[%clk 0:03:01]} 5. Nf3 {[%clk 0:02:24]}  O-O {[%clk 0:03:02]} 6. Be2 {[%clk 0:02:24]}  Nbd7 {[%clk 0:03:02]} 7. O-O {[%clk 0:02:23]}  e5 {[%clk 0:03:03]} 8. Re1 {[%clk 0:02:23]}  Re8 {[%clk 0:03:03]} 9. Bf1 {[%clk 0:02:22]}  c6 {[%clk 0:03:01]} 10. Rb1 {[%clk 0:02:21]}  a5 {[%clk 0:02:54]} 11. b3 {[%clk 0:02:09]}  Qc7 {[%clk 0:02:49]} 12. a3 {[%clk 0:02:02]}  exd4 {[%clk 0:02:47]} 13. Nxd4 {[%clk 0:02:02]}  Nc5 {[%clk 0:02:47]} 14. f3 {[%clk 0:02:02]}  Nh5 {[%clk 0:02:33]} 15. Be3 {[%clk 0:01:58]}  Qe7 {[%clk 0:02:32]} 16. b4 {[%clk 0:01:56]}  axb4 {[%clk 0:02:32]} 17. axb4 {[%clk 0:01:57]}  Ne6 {[%clk 0:02:32]} 18. Qd2 {[%clk 0:01:32]}  Be5 {[%clk 0:02:22]} 19. g3 {[%clk 0:01:30]}  Qf6 {[%clk 0:02:17]} 20. Nce2 {[%clk 0:01:18]}  g5 {[%clk 0:01:34]} 21. Nf5 {[%clk 0:01:13]}  Neg7 {[%clk 0:01:25]} 22. g4 {[%clk 0:01:11]}  Nxf5 {[%clk 0:01:19]} 23. exf5 {[%clk 0:01:12]}  Nf4 {[%clk 0:01:11]} 24. Nxf4 {[%clk 0:01:08]}  gxf4 {[%clk 0:01:10]} 25. Bxf4 {[%clk 0:01:04]}  Bd7 {[%clk 0:01:04]} 26. Bxe5 {[%clk 0:00:55]}  Rxe5 {[%clk 0:01:00]} 27. Rxe5 {[%clk 0:00:53]}  Qxe5 {[%clk 0:00:59]} 28. Re1 {[%clk 0:00:52]}  Qf6 {[%clk 0:01:00]} 29. Rd1 {[%clk 0:00:45]}  d5 {[%clk 0:00:44]} 30. cxd5 {[%clk 0:00:43]}  cxd5 {[%clk 0:00:45]} 31. Qxd5 {[%clk 0:00:40]}  Bc6 {[%clk 0:00:45]} 32. Qd3 {[%clk 0:00:28]}  Ra2 {[%clk 0:00:42]} 33. Qd8+ {[%clk 0:00:17]}  Kg7 {[%clk 0:00:42]} 34. Qxf6+ {[%clk 0:00:16]}  Kxf6 {[%clk 0:00:42]} 35. Bg2 {[%clk 0:00:14]}  Rb2 {[%clk 0:00:42]} 36. Rd4 {[%clk 0:00:13]}  Ke5 {[%clk 0:00:41]} 37. Rc4 {[%clk 0:00:13]}  Kd5 {[%clk 0:00:39]} 38. Rc5+ {[%clk 0:00:13]}  Kd6 {[%clk 0:00:40]} 39. Rc4 {[%clk 0:00:10]}  Bd5 {[%clk 0:00:41]} 40. Rd4 {[%clk 0:00:09]}  Ke5 {[%clk 0:00:41]} 41. Rd1 {[%clk 0:00:08]}  Rxb4 {[%clk 0:00:41]} 42. f4+ {[%clk 0:00:08]}  Kxf4 {[%clk 0:00:39]} 43. Rxd5 {[%clk 0:00:07]}  Kxg4 {[%clk 0:00:40]} 44. h3+ {[%clk 0:00:06]}  Kg5 {[%clk 0:00:40]} 45. Kf2 {[%clk 0:00:05]}  Kf4 {[%clk 0:00:40]} 46. Rc5 {[%clk 0:00:03]}  f6 {[%clk 0:00:40]} 47. Rc3 {[%clk 0:00:03]}  Rb2+ {[%clk 0:00:40]} 48. Kg1 {[%clk 0:00:03]}  Kxf5 {[%clk 0:00:41]} 49. Rf3+ {[%clk 0:00:03]}  Kg5 {[%clk 0:00:41]} 50. Rg3+ {[%clk 0:00:03]}  Kf4 {[%clk 0:00:41]} 51. Rg7 {[%clk 0:00:04]}  b5 {[%clk 0:00:40]} 52. Rxh7 {[%clk 0:00:04]}  b4 {[%clk 0:00:40]} 53. Rb7 {[%clk 0:00:04]}  b3 {[%clk 0:00:39]} 54. h4 {[%clk 0:00:04]}  Kg4 {[%clk 0:00:39]} 55. Rb4+ {[%clk 0:00:05]}  Kg3 {[%clk 0:00:39]} 56. Bf1 {[%clk 0:00:05]}  Rb1 {[%clk 0:00:39]} 57. Rc4 {[%clk 0:00:04]}  b2 {[%clk 0:00:39]} 58. Rb4 {[%clk 0:00:04]}  f5 {[%clk 0:00:39]} 59. h5 {[%clk 0:00:04]}  f4 {[%clk 0:00:40]} 60. h6 {[%clk 0:00:04]}  f3 {[%clk 0:00:40]} 61. Rb3 {[%clk 0:00:04]}  Ra1 {[%clk 0:00:23]} 62. h7 {[%clk 0:00:04]}  Ra8 {[%clk 0:00:22]} 63. Rxb2 {[%clk 0:00:05]}  Rh8 {[%clk 0:00:21]} 64. Rh2 {[%clk 0:00:05]}  f2+ {[%clk 0:00:17]} 65. Kh1 {[%clk 0:00:05]}  Kf3 {[%clk 0:00:15]} 66. Rh3+ {[%clk 0:00:06]}  Kg4 {[%clk 0:00:16]} 67. Kg2 {[%clk 0:00:06]}  Kg5 {[%clk 0:00:16]} 68. Kxf2 {[%clk 0:00:06]}  Kf6 {[%clk 0:00:17]} 69. Bd3 {[%clk 0:00:06]}  Kg7 {[%clk 0:00:17]} 70. Kg3 {[%clk 0:00:06]}  Rf8 {[%clk 0:00:17]} 71. Be4 {[%clk 0:00:06]}  Re8 {[%clk 0:00:17]} 72. Kf4 {[%clk 0:00:06]}  Rf8+ {[%clk 0:00:17]} 73. Bf5 {[%clk 0:00:06]}  Ra8 {[%clk 0:00:17]} 74. Kg5 {[%clk 0:00:06]}  Kh8 {[%clk 0:00:17]} 75. Kf6 {[%clk 0:00:05]}  Rf8+ {[%clk 0:00:17]} 76. Kg5 {[%clk 0:00:05]}  Ra8 {[%clk 0:00:18]} 77. Rh6 {[%clk 0:00:04]}  Rb8 {[%clk 0:00:19]} 78. Rh4 {[%clk 0:00:04]}  Ra8 {[%clk 0:00:19]} 79. Rb4 {[%clk 0:00:03]}  Rc8 {[%clk 0:00:19]} 80. Rd4 {[%clk 0:00:03]}  Rf8 {[%clk 0:00:19]} 81. Rf4 {[%clk 0:00:04]}  Rf7 {[%clk 0:00:18]} 82. Re4 {[%clk 0:00:04]}  Rf8 {[%clk 0:00:19]} 83. Re7 {[%clk 0:00:03]}  Rb8 {[%clk 0:00:18]} 84. Rf7 {[%clk 0:00:03]}  Re8 {[%clk 0:00:18]} 85. Rd7 {[%clk 0:00:03]}  Rf8 {[%clk 0:00:18]} 86. Bg6 {[%clk 0:00:04]}  Rb8 {[%clk 0:00:18]} 87. Re7 {[%clk 0:00:04]}  Rb5+ {[%clk 0:00:19]} 88. Kf6 {[%clk 0:00:03]}  Rb8 {[%clk 0:00:19]} 89. Re8+ {[%clk 0:00:03]}  Rxe8 {[%clk 0:00:20]} 90. Bxe8 {[%clk 0:00:04]}  Kxh7 {[%clk 0:00:20]} 1/2-1/2


[Site "https://www.chess.com"]

[Event "Titled Tuesday Blitz August 22 Late 2023"]
[White "Poltorak, Sebastian"]
[Black "Okike, David"]
[WhiteFideId "1199498"]
[BlackFideId "8500134"]
[WhiteElo "2518"]
[BlackElo "2352"]
[Result "1-0"]
[Round "2"]
[TimeControl "180+1"]
[Date "2023.08.22"]
[WhiteClock "0:00:16"]
[BlackClock "0:00:50"]
[Board "158"]

1. e4 {[%clk 0:03:00]}  c5 {[%clk 0:02:59]} 2. Nc3 {[%clk 0:02:58]}  Nc6 {[%clk 0:02:59]} 3. Bb5 {[%clk 0:02:58]}  e6 {[%clk 0:02:58]} 4. Bxc6 {[%clk 0:02:57]}  dxc6 {[%clk 0:02:59]} 5. d3 {[%clk 0:02:57]}  e5 {[%clk 0:02:59]} 6. Nge2 {[%clk 0:02:56]}  Nf6 {[%clk 0:02:58]} 7. O-O {[%clk 0:02:56]}  Bd6 {[%clk 0:02:56]} 8. f4 {[%clk 0:02:56]}  O-O {[%clk 0:02:55]} 9. h3 {[%clk 0:02:53]}  b6 {[%clk 0:02:54]} 10. f5 {[%clk 0:02:50]}  Ba6 {[%clk 0:02:48]} 11. b3 {[%clk 0:02:48]}  Be7 {[%clk 0:02:47]} 12. Be3 {[%clk 0:02:45]}  Nd7 {[%clk 0:02:46]} 13. Qd2 {[%clk 0:02:44]}  Re8 {[%clk 0:02:42]} 14. g4 {[%clk 0:02:42]}  Nf8 {[%clk 0:02:40]} 15. g5 {[%clk 0:02:41]}  f6 {[%clk 0:02:40]} 16. h4 {[%clk 0:02:37]}  Qd6 {[%clk 0:02:35]} 17. Kh1 {[%clk 0:02:34]}  Rad8 {[%clk 0:02:35]} 18. Rg1 {[%clk 0:02:30]}  c4 {[%clk 0:02:31]} 19. bxc4 {[%clk 0:02:29]}  Bxc4 {[%clk 0:02:31]} 20. Rg2 {[%clk 0:02:20]}  Ba6 {[%clk 0:02:26]} 21. Rag1 {[%clk 0:02:15]}  Rd7 {[%clk 0:02:25]} 22. gxf6 {[%clk 0:02:11]}  Bxf6 {[%clk 0:02:25]} 23. Bg5 {[%clk 0:02:11]}  Ree7 {[%clk 0:02:19]} 24. Ng3 {[%clk 0:02:01]}  Kh8 {[%clk 0:02:15]} 25. Nh5 {[%clk 0:01:57]}  Bxg5 {[%clk 0:02:16]} 26. Qxg5 {[%clk 0:01:46]}  Rf7 {[%clk 0:02:09]} 27. Ne2 {[%clk 0:01:37]}  h6 {[%clk 0:01:53]} 28. Qe3 {[%clk 0:01:34]}  Nh7 {[%clk 0:01:51]} 29. Neg3 {[%clk 0:01:19]}  Qf8 {[%clk 0:01:49]} 30. Qf3 {[%clk 0:01:13]}  c5 {[%clk 0:01:44]} 31. Qg4 {[%clk 0:01:11]}  Bc8 {[%clk 0:01:41]} 32. Nf1 {[%clk 0:01:07]}  Rde7 {[%clk 0:01:39]} 33. Ne3 {[%clk 0:01:06]}  g5 {[%clk 0:01:33]} 34. Nd5 {[%clk 0:00:57]}  Rd7 {[%clk 0:01:32]} 35. hxg5 {[%clk 0:00:51]}  Nxg5 {[%clk 0:01:32]} 36. Rh2 {[%clk 0:00:51]}  Rxd5 {[%clk 0:01:28]} 37. exd5 {[%clk 0:00:50]}  Bxf5 {[%clk 0:01:26]} 38. Qg3 {[%clk 0:00:43]}  Qe7 {[%clk 0:01:23]} 39. Nf4 {[%clk 0:00:34]}  exf4 {[%clk 0:01:20]} 40. Qxg5 {[%clk 0:00:34]}  Qxg5 {[%clk 0:01:15]} 41. Rxg5 {[%clk 0:00:34]}  Kh7 {[%clk 0:01:15]} 42. Rg1 {[%clk 0:00:34]}  c4 {[%clk 0:01:09]} 43. Rd1 {[%clk 0:00:22]}  cxd3 {[%clk 0:01:08]} 44. cxd3 {[%clk 0:00:23]}  Bc8 {[%clk 0:01:05]} 45. d6 {[%clk 0:00:19]}  Rg7 {[%clk 0:01:04]} 46. Rf2 {[%clk 0:00:18]}  Bb7+ {[%clk 0:01:04]} 47. Kh2 {[%clk 0:00:18]}  f3 {[%clk 0:01:04]} 48. Rc1 {[%clk 0:00:17]}  Kg6 {[%clk 0:00:55]} 49. Rg1+ {[%clk 0:00:16]}  Kf6 {[%clk 0:00:54]} 50. Rxg7 {[%clk 0:00:17]}  Kxg7 {[%clk 0:00:50]} 51. d7 {[%clk 0:00:16]} 1-0


[Site "https://www.chess.com"]